lending/lending_fUSD_20260312
["ID","MTS","AMOUNT","RATE_DAILY","PERIOD"]
[408233364,1773279038088,-150.0,0.00019726,2]
[408233365,1773279038098,-500.0,0.00019726,2]
[408233366,1773279038107,-150.0,0.00019726,2]
[408233367,1773279038117,-150.0,0.00019726,2]
[408233368,1773279038127,-150.0,0.00019726,2]
[408233369,1773279038137,-150.0,0.00019726,2]
[408233370,1773279038148,-225.29398025,0.00019726,2]
[408233372,1773279038158,-500.0,0.00019726,2]
[408233374,1773279038168,-150.0,0.00019726,2]
[408233375,1773279038178,-150.0,0.00019726,2]
[408233377,1773279038188,-150.0,0.00019726,2]
[408233378,1773279038199,-500.0,0.00019726,2]
[408233379,1773279038209,-500.0,0.00019726,2]
[408233380,1773279038218,-150.0,0.00019726,2]
[408233381,1773279038228,-150.0,0.00019726,2]
[408233382,1773279038238,-150.0,0.00019726,2]
[408233383,1773279038248,-500.0,0.00019726,2]
[408233384,1773279038258,-500.0,0.00019726,2]
[408233385,1773279038268,-500.0,0.00019726,2]
[408233386,1773279038279,-500.0,0.00019726,2]
[408233387,1773279038289,-500.0,0.00019726,2]
[408233388,1773279038299,-500.0,0.00019726,2]
[408233389,1773279038310,-166.79073309,0.00019726,2]
[408233390,1773279038320,-500.0,0.00019726,2]
[408233391,1773279038332,-500.0,0.00019726,2]
[408233392,1773279038341,-500.0,0.00019726,2]
[408233393,1773279038352,-1000.0,0.00019726,2]
[408233394,1773279038362,-168.0,0.0001974,2]
[408233395,1773279038372,-168.0,0.00019745,2]
[408233396,1773279038383,-154.61,0.00019769,2]
[408233397,1773279038394,-250.0,0.00019781,2]
[408233398,1773279038406,-150.0,0.00019781,2]
[408233399,1773279038416,-500.0,0.00019781,2]
[408233400,1773279038426,-150.0,0.00019781,2]
[408233401,1773279038436,-150.0,0.00019781,2]
[408233402,1773279038446,-150.0,0.00019781,2]
[408233403,1773279038457,-150.0,0.00019781,2]
[408233404,1773279038467,-500.0,0.00019781,2]
[408233405,1773279038478,-250.0,0.00019781,2]
[408233406,1773279038488,-250.0,0.00019781,2]
[408233407,1773279038498,-500.0,0.00019781,2]
[408233408,1773279038508,-622.0029681,0.00019781,2]
[408233409,1773279038518,-200.0,0.00019781,2]
[408233410,1773279038528,-500.0,0.00019781,2]
[408233411,1773279038538,-500.0,0.00019781,2]
[408233412,1773279038547,-504.65270475,0.00019781,2]
[408233413,1773279038557,-580.08317254,0.00019781,2]
[408233414,1773279038567,-502.02056961,0.00019781,2]
[408233415,1773279038577,-500.0,0.00019781,2]
[408233416,1773279038587,-500.0,0.00019781,2]
[408233417,1773279038597,-500.0,0.00019781,2]
[408233418,1773279038606,-500.0,0.00019781,2]
[408233419,1773279038616,-168.13033,0.000198,2]
[408233420,1773279038626,-168.13033,0.000198,2]
[408233421,1773279038636,-1700.0,0.000198,7]
[408233422,1773279038646,-1873.99121039,0.000198,2]
[408233423,1773279038656,-150.0,0.00019836,2]
[408233424,1773279038665,-500.0,0.00019836,2]
[408233425,1773279038675,-150.0,0.00019836,2]
[408233426,1773279038685,-200.0,0.00019836,2]
[408233427,1773279038695,-150.0,0.00019836,2]
[408233428,1773279038706,-150.0,0.00019836,2]
[408233429,1773279038715,-500.0,0.00019836,2]
[408233430,1773279038725,-500.0,0.00019836,2]
[408233431,1773279038735,-500.0,0.00019836,2]
[408233432,1773279038745,-608.0,0.00019836,2]
[408233433,1773279038755,-500.0,0.00019836,2]
[408233434,1773279038765,-500.0,0.00019836,2]
[408233435,1773279038775,-500.0,0.00019836,2]
[408233436,1773279038785,-500.0,0.00019836,2]
[408233437,1773279038795,-168.0,0.00019887,2]
[408233438,1773279038805,-1621.3119598,0.00019888,2]
[408233439,1773279038814,-250.0,0.0001989,2]
[408233440,1773279038824,-150.0,0.0001989,2]
[408233441,1773279038833,-150.0,0.0001989,2]
[408233442,1773279038843,-500.0,0.0001989,2]
[408233443,1773279038853,-500.0,0.0001989,2]
[408233444,1773279038863,-500.0,0.0001989,2]
[408233445,1773279038872,-500.0,0.0001989,2]
[408233446,1773279038882,-161.64643134,0.0001989,2]
[408233447,1773279038892,-500.0,0.0001989,2]
[408233448,1773279038902,-500.0,0.0001989,2]
[408233449,1773279038911,-3835.3179,0.000199,2]
[408233450,1773279038921,-10000.0,0.000199,2]
[408233451,1773279038931,-386.8365445,0.000199,2]
[408233452,1773279039181,-300.0,0.000199,7]
[408233453,1773279039198,-5000.0,0.000199,2]
[408233454,1773279039208,-34043.09066961,0.000199,2]
[408233455,1773279039217,-190.93937086,0.000199,2]
[408233456,1773279039227,-548.60425056,0.000199,2]
[408233457,1773279039236,-2007.63009582,0.000199,2]
[408233458,1773279039246,-7473.09503895,0.000199,2]
[408233459,1773279039255,-358.80694901,0.000199,2]
[408233460,1773279039265,-1256.53,0.00019902,2]
[408233461,1773279039274,-3224.765,0.0001994,2]
[408233462,1773279039283,-169.186,0.0001994,2]
[408233463,1773279039293,-150.0,0.00019945,2]
[408233464,1773279039303,-500.0,0.00019945,2]
[408233465,1773279039312,-500.0,0.00019945,2]
[408233466,1773279039322,-500.0,0.00019945,2]
[408233467,1773279039332,-500.0,0.00019945,2]
[408233468,1773279039343,-500.0,0.00019945,2]
[408233469,1773279039354,-500.0,0.00019945,2]
[408233470,1773279039365,-385.85,0.00019962,2]
[408233471,1773279039376,-500.0,0.00019973,2]
[408233472,1773279039386,-500.0,0.00019973,2]
[408233473,1773279039396,-500.0,0.00019973,2]
[408233474,1773279039406,-6241.8313448,0.00019996,2]
[408233475,1773279039416,-32582.5512289,0.00019996,2]
[408233476,1773279039425,-151.0,0.00019997,2]
[408233477,1773279039436,-500.0,0.00019999,2]
[408233478,1773279039446,-500.0,0.00019999,2]
[408233479,1773279039455,-500.0,0.00019999,2]
[408233480,1773279039464,-500.0,0.00019999,2]
[408233481,1773279039474,-500.0,0.00019999,2]
[408233482,1773279039484,-370.69943514,0.00019999,2]
[408233483,1773279039492,-500.0,0.00019999,2]
[408233484,1773279039503,-296.92362366,0.00019999,2]
[408233485,1773279039515,-500.0,0.00019999,2]
[408233486,1773279039524,-500.0,0.00019999,2]
[408233487,1773279039540,-500.0,0.00019999,2]
[408233488,1773279039550,-500.0,0.00019999,2]
[408233489,1773279039560,-500.0,0.00019999,2]
[408233490,1773279039571,-500.0,0.00019999,2]
[408233491,1773279039582,-500.0,0.00019999,2]
[408233492,1773279039591,-500.0,0.00019999,2]
[408233493,1773279039601,-500.0,0.00019999,2]
[408233494,1773279039611,-500.0,0.00019999,2]
[408233495,1773279039620,-500.0,0.00019999,2]
[408233496,1773279039630,-500.0,0.00019999,2]
[408233497,1773279039640,-251.33351582,0.00019999,2]
[408233498,1773279039649,-2037.0,0.0002,2]
[408233499,1773279039658,-1626.0,0.0002,2]
[408233500,1773279039667,-500.0,0.0002,2]
[408233501,1773279039677,-209.80865041,0.0002,2]
[408233502,1773279039686,-500.0,0.0002,2]
[408233503,1773279039696,-500.0,0.0002,2]
[408233504,1773279039705,-500.0,0.0002,2]
[408233505,1773279039715,-358.19460845,0.0002,2]
[408233506,1773279039724,-336118.37641649,0.0002,2]
[408233507,1773279039770,-13215.49832014,0.0002,2]
[408233508,1773279039782,-1605.0,0.0002,2]
[408233509,1773279039995,-143027.86613035,0.0002,2]
[408233510,1773279040253,-335.38,0.0002,2]
[408233511,1773279040264,-725.5,0.0002,2]
[408233512,1773279040479,-284182.37324469,0.0002,2]
[408233527,1773279045640,-409.6924,0.0001924,2]
[408233528,1773279045649,-1873.99121031,0.00019811,2]
[408233529,1773279045658,-22486.38638969,0.0002,2]
[408233530,1773279045939,-457.445,0.0002,2]
[408233562,1773279129153,-4757.7784,0.00018913,2]
[408233563,1773279129181,-184.4532,0.00019599,2]
[408233564,1773279129226,-115.5468,0.00019599,2]
[408233565,1773279132007,-3673.271,0.000196,2]
[408233566,1773279132035,-169.544,0.000196,2]
[408233567,1773279132066,-897.52,0.00019711,2]
[408233568,1773279132096,-152.4609476,0.00019726,2]
[408233569,1773279132125,-51.4181048,0.00019808,2]
[408233570,1773279132208,-111.5818952,0.00019808,2]
[408233571,1773279135038,-1873.99121031,0.00019822,2]
[408233572,1773279135071,-500.0,0.00019822,2]
[408233573,1773279135101,-1002.37884532,0.00019828,2]
[408233574,1773279135131,-1373.27867843,0.00019833,2]
[408233575,1773279135195,-500.71253188,0.00019833,2]
[408233788,1773279434719,165.0,0.0002,120]
[408233791,1773279591243,-4801.623884,0.0001876,2]
[408233792,1773279591271,-396.762232,0.0001876,2]
[408233795,1773279786331,152.71,9.433e-05,2]
[408233796,1773279786892,152.71,0.00010481,2]
[408233797,1773279786968,152.71,0.00011529,2]
[408233798,1773279787173,152.71,0.00012577,2]
[408233799,1773279787387,152.71,0.00013625,2]
[408233803,1773280026588,-152.71,0.00014673,2]
[408233804,1773280026612,-216.29,0.000148,5]
[408233805,1773280162084,-1806.0,0.000146,5]
[408233806,1773280162104,-461.03623756,0.00015,30]
[408233807,1773280162124,-348.04163799,0.00015,30]
[408233808,1773280162144,-152.71,0.00015721,2]
[408233809,1773280162163,-1511.8,0.00016126,2]
[408233810,1773280162182,-300.0,0.0001614,2]
[408233811,1773280162203,-300.0,0.0001614,2]
[408233812,1773280162224,-300.0,0.0001614,2]
[408233813,1773280162244,-195.18713969,0.00016141,2]
[408233814,1773280162264,-145.33154876,0.00016141,2]
[408233817,1773280231772,-4690.0,0.000145,5]
[408233818,1773280231781,-270.45837619,0.0001475,2]
[408233819,1773280231791,-212.09327423,0.000149,2]
[408233820,1773280231800,-1998.570608,0.00016059,2]
[408233821,1773280231810,-253.83865885,0.0001606,2]
[408233822,1773280231819,-607.69660592,0.0001606,2]
[408233823,1773280231828,-300.0,0.0001606,2]
[408233824,1773280231837,-300.0,0.0001614,2]
[408233825,1773280231846,-1200.0,0.0001614,2]
[408233826,1773280231858,-300.0,0.0001614,2]
[408233827,1773280231867,-104.66845124,0.00016141,2]
[408233828,1773280231876,-600.0,0.00016141,2]
[408233829,1773280231885,-374.7733,0.00016141,2]
[408233830,1773280231894,-3467.62636772,0.00016141,2]
[408233831,1773280231905,-1581.42894873,0.00016141,2]
[408233832,1773280231914,-300.0,0.00016141,2]
[408233833,1773280231926,-250.0,0.0001617,2]
[408233834,1773280231935,-504.87450021,0.000162,2]
[408233835,1773280231944,-506.50684815,0.000162,2]
[408233836,1773280231953,-502.22466572,0.000162,2]
[408233837,1773280231962,-502.19665018,0.000162,2]
[408233838,1773280231971,-500.0,0.000162,2]
[408233839,1773280231980,-500.79155227,0.00016748,2]
[408233841,1773280231989,-152.71,0.00016769,2]
[408233843,1773280231998,-550.1547,0.00017,2]
[408233844,1773280232007,-160.0,0.00017232,2]
[408233845,1773280232016,-212.09327423,0.00017257,2]
[408233846,1773280232024,-420.0,0.00017643,2]
[408233847,1773280232034,-1680.0,0.00017732,2]
[408233848,1773280232043,-152.71,0.00017817,2]
[408233849,1773280232052,-250.0,0.00018332,2]
[408233850,1773280232061,-170.78,0.00018512,2]
[408233851,1773280232070,-555.0,0.00018564,2]
[408233852,1773280232079,-555.0,0.00018564,2]
[408233854,1773280232312,-555.0,0.00018564,2]
[408233855,1773280232321,-500.0,0.00018565,2]
[408233856,1773280232330,-168.0,0.0001875,2]
[408233857,1773280232338,-555.0,0.00018755,2]
[408233858,1773280232347,-555.0,0.00018853,2]
[408233859,1773280232356,-555.0,0.00018854,2]
[408233860,1773280232365,-6082.38,0.00018855,2]
[408233861,1773280232374,-152.71,0.00018866,2]
[408233862,1773280232383,-168.0,0.00018903,2]
[408233863,1773280232392,-200.0,0.00018969,2]
[408233864,1773280232400,-2000.0,0.00018969,2]
[408233865,1773280232409,-4452.56,0.00018969,2]
[408233866,1773280232418,-2605.06,0.00018974,2]
[408233867,1773280232428,-170.78,0.00018975,2]
[408233868,1773280232440,-500.0,0.00018999,2]
[408233869,1773280232449,-228.03188069,0.00018999,2]
[408233870,1773280232458,-501.65818197,0.00019,2]
[408233871,1773280232467,-5025.9050725,0.00019,2]
[408233872,1773280232477,-5000.0,0.00019,2]
[408233873,1773280232486,-5000.0,0.00019,2]
[408233874,1773280232495,-5000.0,0.00019,2]
[408233875,1773280232503,-150.0,0.00019093,2]
[408233876,1773280232512,-1000.0,0.00019178,2]
[408233877,1773280232521,-173.0,0.00019253,2]
[408233878,1773280232530,-587.0,0.00019287,2]
[408233879,1773280232538,-173.0,0.00019389,2]
[408233880,1773280232547,-300.0,0.000194,7]
[408233881,1773280232556,-173.0,0.00019409,2]
[408233882,1773280232565,-170.78,0.00019438,2]
[408233883,1773280232573,-1000.0,0.00019452,2]
[408233884,1773280232583,-173.0,0.00019468,2]
[408233885,1773280232591,-2351.0,0.00019481,2]
[408233886,1773280232600,-466.36,0.000195,2]
[408233887,1773280232609,-700.0,0.000195,7]
[408233888,1773280232618,-1000.0,0.000196,7]
[408233889,1773280232626,-212.09327423,0.00019614,2]
[408233890,1773280232635,-824.87132356,0.00019699,2]
[408233891,1773280232644,-1400.0,0.000197,7]
[408233892,1773280232653,-1478.0261,0.000197,2]
[408233893,1773280232662,-1438.5109,0.000197,2]
[408233894,1773280232671,-500.0,0.00019714,2]
[408233895,1773280232680,-500.0,0.00019714,2]
[408233896,1773280232689,-500.0,0.00019714,2]
[408233897,1773280232698,-500.0,0.00019714,2]
[408233898,1773280232707,-306.78363854,0.00019714,2]
[408233899,1773280232717,-500.0,0.00019714,2]
[408233900,1773280232726,-500.0,0.00019714,2]
[408233901,1773280232734,-500.0,0.00019714,2]
[408233902,1773280232743,-500.0,0.00019714,2]
[408233903,1773280232752,-500.0,0.00019714,2]
[408233904,1773280232762,-500.0,0.00019714,2]
[408233905,1773280232771,-500.0,0.00019714,2]
[408233906,1773280232780,-500.0,0.00019714,2]
[408233907,1773280232789,-500.0,0.00019714,2]
[408233908,1773280232798,-500.0,0.00019714,2]
[408233909,1773280232807,-500.0,0.00019714,2]
[408233910,1773280232817,-500.0,0.00019714,2]
[408233911,1773280232826,-2752.68614325,0.00019716,2]
[408233912,1773280232846,-6434.07619553,0.00019716,2]
[408233913,1773280232857,-4774.75207285,0.00019716,2]
[408233914,1773280232866,-150.0,0.00019726,2]
[408233915,1773280232875,-500.0,0.00019726,2]
[408233916,1773280232884,-504.47,0.00019726,2]
[408233917,1773280232895,-150.0,0.00019726,2]
[408233918,1773280232904,-150.0,0.00019726,2]
[408233919,1773280232914,-150.0,0.00019726,2]
[408233920,1773280232923,-228.04872743,0.00019726,2]
[408233921,1773280232933,-150.0,0.00019726,2]
[408233922,1773280232942,-150.0,0.00019726,2]
[408233923,1773280232951,-152.10395898,0.00019726,2]
[408233924,1773280232960,-500.0,0.00019726,2]
[408233925,1773280232970,-500.0,0.00019726,2]
[408233926,1773280232979,-150.0,0.00019726,2]
[408233927,1773280232988,-150.0,0.00019726,2]
[408233928,1773280232997,-150.0,0.00019726,2]
[408233929,1773280233006,-500.0,0.00019726,2]
[408233930,1773280233015,-500.0,0.00019726,2]
[408233931,1773280233024,-150.0,0.00019726,2]
[408233932,1773280233033,-500.0,0.00019726,2]
[408233933,1773280233042,-500.0,0.00019726,2]
[408233934,1773280233050,-200.50597386,0.00019726,2]
[408233937,1773280237819,-299.49402614,0.00019726,2]
[408233938,1773280237829,-150.0,0.00019726,2]
[408233939,1773280237848,-37.62100356,0.00019726,2]
[408233940,1773280237871,-462.37899644,0.00019726,2]
[408233941,1773280237883,-37.02635528,0.00019726,2]
[408233942,1773280237929,-315.74391573,0.00019726,2]
[408233943,1773280237942,-147.22972899,0.00019726,2]
[408233944,1773280237953,-500.0,0.00019726,2]
[408233945,1773280237963,-166.79073309,0.00019726,2]
[408233946,1773280237974,-456.58185806,0.00019726,2]
[408233947,1773280237989,-43.41814194,0.00019726,2]
[408233948,1773280238000,-500.0,0.00019726,2]
[408233949,1773280238011,-1000.0,0.00019726,2]
[408233950,1773280238021,-501.5263658,0.00019773,2]
[408233951,1773280238031,-150.11304618,0.00019773,2]
[408233952,1773280238042,-500.0,0.00019773,2]
[408233953,1773280238051,-150.0,0.00019781,2]
[408233954,1773280238060,-500.0,0.00019781,2]
[408233955,1773280238070,-260.26369962,0.00019781,2]
[408233956,1773280238079,-150.0,0.00019781,2]
[408233957,1773280238088,-250.0,0.00019781,2]
[408233958,1773280238097,-252.37586994,0.00019781,2]
[408233959,1773280238106,-81.47281862,0.00019781,2]
[408233960,1773280238128,-68.52718138,0.00019781,2]
[408233961,1773280238136,-500.0,0.00019781,2]
[408233962,1773280238145,-632.57429461,0.00019781,2]
[408233963,1773280238155,-204.00301513,0.00019781,2]
[408233964,1773280238163,-500.0,0.00019781,2]
[408233965,1773280238173,-500.0,0.00019781,2]
[408233966,1773280238181,-150.0,0.00019781,2]
[408233967,1773280238190,-504.65270475,0.00019781,2]
[408233968,1773280238200,-580.08317254,0.00019781,2]
[408233969,1773280238212,-502.02056961,0.00019781,2]
[408233970,1773280238221,-150.0,0.00019781,2]
[408233971,1773280238230,-500.0,0.00019781,2]
[408233972,1773280238240,-500.0,0.00019781,2]
[408233973,1773280238249,-500.0,0.00019781,2]
[408233974,1773280238263,-500.0,0.00019781,2]
[408233975,1773280238272,-500.0,0.00019781,2]
[408233976,1773280238283,-7095.4992,0.00019799,2]
[408233977,1773280238292,-6750.3714,0.00019799,2]
[408233978,1773280238301,-418.0,0.000198,3]
[408233979,1773280238310,-1919.50261,0.000198,2]
[408233980,1773280238320,-1919.50261,0.000198,2]
[408233981,1773280238330,-1700.0,0.000198,7]
[408233982,1773280238339,-7328.38531496,0.000198,2]
[408233983,1773280238349,-7328.38531495,0.00019811,2]
[408233984,1773280238358,-169.544,0.00019828,2]
[408233985,1773280238367,-2938.616,0.00019828,2]
[408233986,1773280238376,-183.0,0.00019833,3]
[408233987,1773280238385,-150.0,0.00019836,2]
[408233988,1773280238395,-500.89059592,0.00019836,2]
[408233989,1773280238404,-150.0,0.00019836,2]
[408233990,1773280238416,-201.96044886,0.00019836,2]
[408233991,1773280238428,-500.0,0.00019836,2]
[408233992,1773280238442,-500.0,0.00019836,2]
[408233993,1773280238452,-619.85232238,0.00019836,2]
[408233994,1773280238461,-150.0,0.00019836,2]
[408233995,1773280238471,-152.34407371,0.00019836,2]
[408233996,1773280238481,-500.0,0.00019836,2]
[408233997,1773280238492,-500.0,0.00019836,2]
[408233998,1773280238503,-500.0,0.00019836,2]
[408233999,1773280238513,-500.0,0.00019836,2]
[408234000,1773280238522,-500.0,0.00019836,2]
[408234001,1773280238532,-1000.0,0.0001984,2]
[408234002,1773280238543,-496.3,0.0001985,5]
[408234003,1773280238552,-2637.21623849,0.00019864,2]
[408234004,1773280238561,-227.76,0.0001987,2]
[408234005,1773280238571,-500.0,0.00019873,2]
[408234006,1773280238581,-500.0,0.00019873,2]
[408234007,1773280238590,-2637.21623849,0.00019882,2]
[408234008,1773280238600,-151.83789529,0.0001989,2]
[408234009,1773280238610,-258.69313872,0.0001989,2]
[408234010,1773280238623,-500.0,0.0001989,2]
[408234011,1773280238633,-500.0,0.0001989,2]
[408234012,1773280238642,-150.0,0.0001989,2]
[408234013,1773280238651,-500.0,0.0001989,2]
[408234014,1773280238661,-161.64643134,0.0001989,2]
[408234015,1773280238670,-500.0,0.0001989,2]
[408234016,1773280238679,-500.0,0.0001989,2]
[408234017,1773280238689,-510.24405567,0.00019898,2]
[408234018,1773280238699,-500.0,0.00019898,2]
[408234019,1773280238709,-502.53574681,0.00019898,2]
[408234020,1773280238719,-509.55308461,0.00019898,2]
[408234021,1773280238728,-144737.37099881,0.00019899,2]
[408234022,1773280238740,-28418.34010119,0.00019899,2]
[408234023,1773280238749,-514.33858661,0.00019899,2]
[408234024,1773280238758,-500.0,0.00019899,2]
[408234025,1773280238768,-500.0,0.00019899,2]
[408234026,1773280238777,-500.0,0.00019899,2]
[408234027,1773280238786,-509.59584393,0.00019899,2]
[408234028,1773280238796,-250.0,0.000199,2]
[408234029,1773280238810,-3730.5215,0.000199,2]
[408234030,1773280238820,-3836.1814,0.000199,2]
[408234031,1773280238829,-10000.0,0.000199,2]
[408234032,1773280238840,-2637.21623849,0.000199,2]
[408234033,1773280238851,-389.78487101,0.000199,2]
[408234034,1773280238861,-300.0,0.000199,7]
[408234035,1773280238871,-5000.0,0.000199,2]
[408234036,1773280238882,-7473.09503895,0.000199,2]
[408234037,1773280238891,-191.26624595,0.000199,2]
[408234038,1773280238901,-59678.47821698,0.000199,2]
[408234039,1773280238910,-170.78,0.00019901,2]
[408234040,1773280238920,-250.0,0.00019921,2]
[408234041,1773280238930,-2605.06,0.00019923,2]
[408234042,1773280238940,-173.0,0.00019938,2]
[408234043,1773280238949,-250.0,0.0001994,2]
[408234044,1773280238958,-500.0,0.00019945,2]
[408234045,1773280238967,-500.0,0.00019945,2]
[408234046,1773280238978,-500.0,0.00019945,2]
[408234047,1773280238987,-500.0,0.00019945,2]
[408234048,1773280238996,-500.0,0.00019945,2]
[408234049,1773280239010,-250.0,0.00019964,2]
[408234050,1773280239019,-6985.795604,0.00019982,2]
[408234051,1773280239028,-1703.5033115,0.00019982,2]
[408234052,1773280239037,-26850.5055341,0.0001999,2]
[408234053,1773280239046,-1621.3119599,0.0001999,2]
[408234054,1773280239056,-4925.8174511,0.0001999,2]
[408234055,1773280239066,-151.0,0.00019997,2]
[408234056,1773280239076,-2485.9815561,0.00019999,2]
[408234057,1773280239092,-506.16099555,0.00019999,2]
[408234058,1773280239113,-371.53423539,0.00019999,2]
[408234059,1773280239122,-304.53004309,0.00019999,2]
[408234060,1773280239132,-500.0,0.00019999,2]
[408234061,1773280239141,-515.54706681,0.00019999,2]
[408234062,1773280239151,-502.06864293,0.00019999,2]
[408234063,1773280239160,-502.7152011,0.00019999,2]
[408234064,1773280239169,-509.96034624,0.00019999,2]
[408234065,1773280239179,-500.0,0.00019999,2]
[408234066,1773280239187,-522.15248621,0.00019999,2]
[408234067,1773280239197,-514.0415693,0.00019999,2]
[408234068,1773280239206,-515.37141689,0.00019999,2]
[408234069,1773280239217,-253.78289958,0.00019999,2]
[408234070,1773280239226,-500.0,0.00019999,2]
[408234071,1773280239235,-292.66722441,0.00019999,2]
[408234072,1773280239245,-500.0,0.00019999,2]
[408234073,1773280239254,-500.0,0.00019999,2]
[408234074,1773280239264,-525.54550427,0.00019999,2]
[408234075,1773280239273,-2044.0,0.0002,2]
[408234076,1773280239282,-1636.0,0.0002,2]
[408234077,1773280239292,-213.31180898,0.0002,2]
[408234078,1773280239301,-500.0,0.0002,2]
[408234079,1773280239311,-500.0,0.0002,2]
[408234080,1773280239321,-500.0,0.0002,2]
[408234081,1773280239330,-507.47456818,0.0002,2]
[408234082,1773280239340,-340529.99185856,0.0002,2]
[408234092,1773280240063,-1015.96867818,0.00019822,2]
[408234093,1773280240222,-1655.35490122,0.00019822,2]
[408234094,1773280240233,-1184.31792383,0.00019822,2]
[408234095,1773280240245,-638.85587575,0.00019822,2]
[408234096,1773280240279,-2833.88793597,0.00019822,2]
[408234097,1773280240288,-281348.48530872,0.0002,2]
[408234098,1773280240299,-8831.86646971,0.0002,2]
[408234099,1773280240311,-8947.21879473,0.0002,2]
[408234100,1773280240323,-8943.78386462,0.0002,2]
[408234101,1773280240334,-9077.54866152,0.0002,2]
[408234102,1773280240346,-750.0,0.0002,2]
[408234103,1773280240366,-872.14,0.0002,2]
[408234104,1773280240600,-6800.85065625,0.0002,2]
[408234136,1773280244409,-6110.96538144,0.00019833,2]
[408234137,1773280244624,-1217.41993351,0.00019833,2]
[408234138,1773280244634,-48792.58006649,0.0002,2]
[408234139,1773280244646,-809.74516329,0.0002,2]
[408234140,1773280245716,-816134.3137563,0.0002,2]
[408234141,1773280245928,-395.45737849,0.0002,2]
[408234142,1773280246086,-7350.20269681,0.0002,2]
[408234143,1773280246098,-6803.533306,0.0002,2]
[408234257,1773280948023,155.0,0.000144,5]
[408234260,1773280956557,1087.36143511,9.5e-05,3]
[408234261,1773280956581,5000.01,9.5e-05,3]
[408234262,1773280956603,5000.01,9.5e-05,3]
[408234263,1773280956625,5000.01,9.5e-05,3]
[408234264,1773280956647,5000.01,9.5e-05,3]
[408234265,1773280956672,5000.01,9.5e-05,3]
[408234266,1773280956701,75378.25856489,9.5e-05,3]
[408234274,1773281170354,10000.0,0.0002,120]
[408234306,1773281431963,-315.31506907,0.000147,2]
[408234307,1773281432014,-184.68493093,0.000147,2]
[408234308,1773281432024,-515.48063411,0.00015,30]
[408234309,1773281432033,-581.57405072,0.00016199,2]
[408234310,1773281432068,-91.42594928,0.00016199,2]
[408234311,1773281432077,-300.0,0.00016199,2]
[408234312,1773281432087,-3211.73405062,0.000162,5]
[408234313,1773281432098,-27299.38194565,0.000162,5]
[408234314,1773281432110,-8153.70746126,0.000162,5]
[408234315,1773281432119,-166.66,0.00016712,2]
[408234317,1773281432128,-150.0,0.00016999,2]
[408234319,1773281432137,-13894.1754297,0.00017,2]
[408234321,1773281432147,-505.0,0.00017,2]
[408234322,1773281432156,-14223.27761824,0.0001711,2]
[408234323,1773281432165,-420.0,0.00017707,2]
[408234324,1773281432175,-5558.27119252,0.00018,2]
[408234325,1773281432183,-166.66,0.00018007,2]
[408234326,1773281432193,-500.0,0.00018082,2]
[408234328,1773281432202,-155.49,0.00018149,2]
[408234329,1773281432214,-1007.06,0.00018268,2]
[408234330,1773281432223,-166.66,0.00018387,2]
[408234331,1773281432232,-208.04,0.00018442,2]
[408234332,1773281432242,-801.25,0.00018454,2]
[408234333,1773281432251,-2149.3,0.00018466,2]
[408234334,1773281432261,-3928.33,0.00018518,2]